[Event "December 5 Early 2023"]
[Site "https://www.chess.com"]
[Date "2023.12.05"]
[Round "7"]
[White "Bacrot, Etienne"]
[Black "Sarana, Alexey"]
[Result "0-1"]
[Board "21"]
[TimeControl "180+1"]
[WhiteFideId "605506"]
[BlackFideId "24133795"]
[WhiteElo "2835"]
[BlackElo "2989"]
[WhiteTeam "FRA"]
[BlackTeam "SRB"]
[WhiteClock "0:00:05"]
[BlackClock "0:01:16"]

1. e4 {[%clk 0:03:00]}  c5 {[%clk 0:02:58]} 2. Nf3 {[%clk 0:03:00]}  d6 {[%clk 0:02:58]} 3. Bb5+ {[%clk 0:03:00]}  Bd7 {[%clk 0:02:59]} 4. c4 {[%clk 0:02:59]}  Nc6 {[%clk 0:02:59]} 5. Nc3 {[%clk 0:02:59]}  e5 {[%clk 0:02:59]} 6. O-O {[%clk 0:02:58]}  Nge7 {[%clk 0:03:00]} 7. d3 {[%clk 0:02:58]}  Ng6 {[%clk 0:03:00]} 8. a3 {[%clk 0:02:55]}  Be7 {[%clk 0:03:01]} 9. b4 {[%clk 0:02:55]}  O-O {[%clk 0:03:01]} 10. bxc5 {[%clk 0:02:55]}  dxc5 {[%clk 0:03:01]} 11. Nd5 {[%clk 0:02:56]}  Bg4 {[%clk 0:03:01]} 12. Bxc6 {[%clk 0:02:42]}  bxc6 {[%clk 0:03:00]} 13. Nxe7+ {[%clk 0:02:41]}  Qxe7 {[%clk 0:03:00]} 14. h3 {[%clk 0:02:42]}  Bxf3 {[%clk 0:02:58]} 15. Qxf3 {[%clk 0:02:42]}  Rab8 {[%clk 0:02:57]} 16. Be3 {[%clk 0:02:38]}  Rb3 {[%clk 0:02:57]} 17. Qe2 {[%clk 0:02:33]}  Rfb8 {[%clk 0:02:57]} 18. g3 {[%clk 0:02:17]}  Nf8 {[%clk 0:02:49]} 19. Kg2 {[%clk 0:02:16]}  Ne6 {[%clk 0:02:49]} 20. Rfd1 {[%clk 0:02:07]}  Qd6 {[%clk 0:02:40]} 21. h4 {[%clk 0:01:56]}  h6 {[%clk 0:02:29]} 22. Ra2 {[%clk 0:01:55]}  Rd8 {[%clk 0:02:28]} 23. a4 {[%clk 0:01:32]}  a6 {[%clk 0:01:54]} 24. Rb2 {[%clk 0:01:19]}  Rb4 {[%clk 0:01:44]} 25. Qc2 {[%clk 0:00:50]}  Rdb8 {[%clk 0:01:41]} 26. Rxb4 {[%clk 0:00:48]}  cxb4 {[%clk 0:01:42]} 27. c5 {[%clk 0:00:48]}  Qc7 {[%clk 0:01:39]} 28. Qb3 {[%clk 0:00:28]}  a5 {[%clk 0:01:39]} 29. d4 {[%clk 0:00:14]}  exd4 {[%clk 0:01:34]} 30. Bxd4 {[%clk 0:00:14]}  Rd8 {[%clk 0:01:32]} 31. Be3 {[%clk 0:00:14]}  Rxd1 {[%clk 0:01:28]} 32. Qxd1 {[%clk 0:00:15]}  Qe5 {[%clk 0:01:27]} 33. Qd3 {[%clk 0:00:15]}  Nxc5 {[%clk 0:01:22]} 34. Qd8+ {[%clk 0:00:14]}  Kh7 {[%clk 0:01:22]} 35. Qxa5 {[%clk 0:00:15]}  Qxe4+ {[%clk 0:01:22]} 36. Kh2 {[%clk 0:00:05]}  Nd3 {[%clk 0:01:16]} 0-1

[Event "December 5 Early 2023"]
[Site "https://www.chess.com"]
[Date "2023.12.05"]
[Round "7"]
[White "Makarian, Rudik"]
[Black "Klukin, Kirill"]
[Result "0-1"]
[Board "22"]
[TimeControl "180+1"]
[WhiteFideId "44105681"]
[BlackFideId "24199273"]
[WhiteElo "2987"]
[BlackElo "2834"]
[WhiteTeam "FID"]
[BlackTeam "RUS"]
[WhiteClock "0:00:04"]
[BlackClock "0:00:11"]

1. d4 {[%clk 0:03:00]}  d5 {[%clk 0:02:58]} 2. c4 {[%clk 0:03:00]}  c6 {[%clk 0:02:58]} 3. Nf3 {[%clk 0:03:00]}  e6 {[%clk 0:02:58]} 4. Nc3 {[%clk 0:03:00]}  dxc4 {[%clk 0:02:55]} 5. g3 {[%clk 0:02:59]}  Nf6 {[%clk 0:02:50]} 6. Bg2 {[%clk 0:02:58]}  b5 {[%clk 0:02:51]} 7. Ne5 {[%clk 0:02:58]}  Qb6 {[%clk 0:02:44]} 8. O-O {[%clk 0:02:52]}  Bb7 {[%clk 0:02:43]} 9. b3 {[%clk 0:02:39]}  cxb3 {[%clk 0:02:31]} 10. Qxb3 {[%clk 0:02:40]}  Nbd7 {[%clk 0:02:29]} 11. Rd1 {[%clk 0:02:19]}  a5 {[%clk 0:02:20]} 12. a4 {[%clk 0:02:06]}  b4 {[%clk 0:02:15]} 13. Nc4 {[%clk 0:01:57]}  Qd8 {[%clk 0:02:05]} 14. Bf4 {[%clk 0:01:53]}  Nb6 {[%clk 0:01:56]} 15. Ne5 {[%clk 0:01:11]}  Nbd5 {[%clk 0:01:52]} 16. Ne4 {[%clk 0:01:06]}  Be7 {[%clk 0:01:48]} 17. Nc5 {[%clk 0:01:01]}  Qb6 {[%clk 0:01:26]} 18. Nc4 {[%clk 0:00:56]}  Qa7 {[%clk 0:01:16]} 19. Bd6 {[%clk 0:00:48]}  Ba6 {[%clk 0:01:07]} 20. Bxe7 {[%clk 0:00:24]}  Bxc4 {[%clk 0:00:53]} 21. Qxc4 {[%clk 0:00:25]}  Qxe7 {[%clk 0:00:51]} 22. Nb3 {[%clk 0:00:24]}  O-O {[%clk 0:00:49]} 23. Rdc1 {[%clk 0:00:16]}  Rfc8 {[%clk 0:00:48]} 24. Bf3 {[%clk 0:00:15]}  Nc3 {[%clk 0:00:46]} 25. Kg2 {[%clk 0:00:15]}  Nfd5 {[%clk 0:00:45]} 26. Rc2 {[%clk 0:00:14]}  Nb6 {[%clk 0:00:41]} 27. Qc5 {[%clk 0:00:14]}  Qxc5 {[%clk 0:00:37]} 28. Nxc5 {[%clk 0:00:15]}  Rab8 {[%clk 0:00:37]} 29. e3 {[%clk 0:00:15]}  Nbd5 {[%clk 0:00:30]} 30. Nb3 {[%clk 0:00:15]}  Nb6 {[%clk 0:00:28]} 31. Nxa5 {[%clk 0:00:14]}  Nbxa4 {[%clk 0:00:25]} 32. Nb3 {[%clk 0:00:14]}  c5 {[%clk 0:00:24]} 33. dxc5 {[%clk 0:00:10]}  Nxc5 {[%clk 0:00:24]} 34. Nd4 {[%clk 0:00:10]}  g6 {[%clk 0:00:21]} 35. Nc6 {[%clk 0:00:10]}  Nb3 {[%clk 0:00:05]} 36. Ra7 {[%clk 0:00:07]}  Nc5 {[%clk 0:00:02]} 37. Ne7+ {[%clk 0:00:05]}  Kg7 {[%clk 0:00:02]} 38. Nxc8 {[%clk 0:00:05]}  Rxc8 {[%clk 0:00:03]} 39. Ra5 {[%clk 0:00:05]}  Nd3 {[%clk 0:00:03]} 40. Kf1 {[%clk 0:00:04]}  b3 {[%clk 0:00:04]} 41. Rd2 {[%clk 0:00:02]}  b2 {[%clk 0:00:04]} 42. Rxb2 {[%clk 0:00:02]}  Nxb2 {[%clk 0:00:05]} 43. Ra7 {[%clk 0:00:03]}  Nc4 {[%clk 0:00:05]} 44. Kg2 {[%clk 0:00:03]}  Nd2 {[%clk 0:00:06]} 45. Bg4 {[%clk 0:00:03]}  Rc6 {[%clk 0:00:04]} 46. h4 {[%clk 0:00:02]}  h5 {[%clk 0:00:04]} 47. Bh3 {[%clk 0:00:03]}  Nde4 {[%clk 0:00:05]} 48. Kg1 {[%clk 0:00:03]}  Nf6 {[%clk 0:00:05]} 49. Bg2 {[%clk 0:00:03]}  Rd6 {[%clk 0:00:06]} 50. Bf1 {[%clk 0:00:03]}  Nce4 {[%clk 0:00:06]} 51. Ra2 {[%clk 0:00:03]}  Rd2 {[%clk 0:00:06]} 52. Rxd2 {[%clk 0:00:03]}  Nxd2 {[%clk 0:00:07]} 53. Be2 {[%clk 0:00:03]}  Nde4 {[%clk 0:00:08]} 54. Kg2 {[%clk 0:00:04]}  Ng4 {[%clk 0:00:06]} 55. Bxg4 {[%clk 0:00:02]}  hxg4 {[%clk 0:00:06]} 56. f3 {[%clk 0:00:03]}  gxf3+ {[%clk 0:00:07]} 57. Kxf3 {[%clk 0:00:03]}  Nd6 {[%clk 0:00:07]} 58. Kf4 {[%clk 0:00:04]}  Kf6 {[%clk 0:00:08]} 59. g4 {[%clk 0:00:04]}  e5+ {[%clk 0:00:08]} 60. Kf3 {[%clk 0:00:05]}  Ke6 {[%clk 0:00:08]} 61. Kg3 {[%clk 0:00:05]}  f5 {[%clk 0:00:09]} 62. h5 {[%clk 0:00:04]}  gxh5 {[%clk 0:00:09]} 63. gxh5 {[%clk 0:00:04]}  Kf6 {[%clk 0:00:09]} 64. Kh4 {[%clk 0:00:05]}  Nf7 {[%clk 0:00:10]} 65. Kg3 {[%clk 0:00:04]}  Kg5 {[%clk 0:00:11]} 0-1

[Event "December 5 Early 2023"]
[Site "https://www.chess.com"]
[Date "2023.12.05"]
[Round "7"]
[White "Rustemov, Alexander"]
[Black "Khismatullin, Denis"]
[Result "0-1"]
[Board "23"]
[TimeControl "180+1"]
[WhiteFideId "4119002"]
[BlackFideId "4142578"]
[WhiteElo "2831"]
[BlackElo "2932"]
[WhiteTeam "RUS"]
[BlackTeam "RUS"]
[WhiteClock "0:00:00"]
[BlackClock "0:00:07"]

1. d4 {[%clk 0:03:00]}  Nf6 {[%clk 0:02:59]} 2. c4 {[%clk 0:03:01]}  g6 {[%clk 0:03:00]} 3. Nf3 {[%clk 0:03:02]}  Bg7 {[%clk 0:02:58]} 4. g3 {[%clk 0:03:02]}  O-O {[%clk 0:02:56]} 5. Bg2 {[%clk 0:03:03]}  c6 {[%clk 0:02:56]} 6. b3 {[%clk 0:02:58]}  d5 {[%clk 0:02:54]} 7. Nbd2 {[%clk 0:02:58]}  Ne4 {[%clk 0:02:50]} 8. Bb2 {[%clk 0:02:57]}  Bf5 {[%clk 0:02:46]} 9. O-O {[%clk 0:02:57]}  Qa5 {[%clk 0:02:45]} 10. a3 {[%clk 0:02:47]}  Nd7 {[%clk 0:02:39]} 11. b4 {[%clk 0:02:46]}  Qa6 {[%clk 0:02:37]} 12. Rc1 {[%clk 0:02:35]}  Nb6 {[%clk 0:02:33]} 13. c5 {[%clk 0:02:21]}  Na4 {[%clk 0:02:28]} 14. Ba1 {[%clk 0:02:17]}  Qb5 {[%clk 0:02:21]} 15. Nb3 {[%clk 0:02:15]}  b6 {[%clk 0:02:21]} 16. Nh4 {[%clk 0:02:00]}  bxc5 {[%clk 0:02:13]} 17. Nxf5 {[%clk 0:01:53]}  gxf5 {[%clk 0:02:14]} 18. Bxe4 {[%clk 0:01:47]}  fxe4 {[%clk 0:02:11]} 19. Nxc5 {[%clk 0:01:47]}  Nb6 {[%clk 0:02:08]} 20. Bc3 {[%clk 0:01:34]}  Nc4 {[%clk 0:01:56]} 21. a4 {[%clk 0:01:33]}  Qb8 {[%clk 0:01:56]} 22. Qc2 {[%clk 0:01:29]}  Qd6 {[%clk 0:01:53]} 23. e3 {[%clk 0:01:29]}  f5 {[%clk 0:01:51]} 24. Kg2 {[%clk 0:01:18]}  h5 {[%clk 0:01:46]} 25. h4 {[%clk 0:01:15]}  Qg6 {[%clk 0:01:44]} 26. Kh2 {[%clk 0:01:09]}  Rad8 {[%clk 0:01:39]} 27. Qe2 {[%clk 0:01:09]}  Qg4 {[%clk 0:01:34]} 28. Qxg4 {[%clk 0:01:08]}  fxg4 {[%clk 0:01:34]} 29. Kg2 {[%clk 0:01:08]}  Kf7 {[%clk 0:01:30]} 30. Rc2 {[%clk 0:01:03]}  Rd6 {[%clk 0:01:10]} 31. Rfc1 {[%clk 0:01:03]}  Bh6 {[%clk 0:00:55]} 32. Re2 {[%clk 0:00:59]}  Kg6 {[%clk 0:00:39]} 33. Be1 {[%clk 0:00:59]}  Nb6 {[%clk 0:00:39]} 34. Rec2 {[%clk 0:00:57]}  Rf3 {[%clk 0:00:30]} 35. Nb7 {[%clk 0:00:57]}  Rdf6 {[%clk 0:00:28]} 36. Rxc6 {[%clk 0:00:52]}  Nc4 {[%clk 0:00:28]} 37. Rxf6+ {[%clk 0:00:51]}  Kxf6 {[%clk 0:00:27]} 38. Rc3 {[%clk 0:00:35]}  e5 {[%clk 0:00:25]} 39. dxe5+ {[%clk 0:00:34]}  Nxe5 {[%clk 0:00:24]} 40. Nc5 {[%clk 0:00:31]}  Kf5 {[%clk 0:00:24]} 41. b5 {[%clk 0:00:31]}  Bf8 {[%clk 0:00:24]} 42. a5 {[%clk 0:00:31]}  Bxc5 {[%clk 0:00:23]} 43. Rxc5 {[%clk 0:00:30]}  Nd3 {[%clk 0:00:23]} 44. Rxd5+ {[%clk 0:00:30]}  Ke6 {[%clk 0:00:24]} 45. Rd4 {[%clk 0:00:17]}  Nxe1+ {[%clk 0:00:23]} 46. Kf1 {[%clk 0:00:18]}  Nd3 {[%clk 0:00:23]} 47. Rxe4+ {[%clk 0:00:18]}  Kf5 {[%clk 0:00:21]} 48. Re7 {[%clk 0:00:16]}  Rxf2+ {[%clk 0:00:20]} 49. Kg1 {[%clk 0:00:16]}  Rb2 {[%clk 0:00:18]} 50. e4+ {[%clk 0:00:14]}  Kf6 {[%clk 0:00:17]} 51. Rxa7 {[%clk 0:00:13]}  Rxb5 {[%clk 0:00:16]} 52. a6 {[%clk 0:00:13]}  Ra5 {[%clk 0:00:14]} 53. Ra8 {[%clk 0:00:13]}  Ne5 {[%clk 0:00:09]} 54. a7 {[%clk 0:00:13]}  Kg7 {[%clk 0:00:09]} 55. Re8 {[%clk 0:00:12]}  Nf3+ {[%clk 0:00:09]} 56. Kf2 {[%clk 0:00:12]}  Rxa7 {[%clk 0:00:10]} 57. Ke3 {[%clk 0:00:11]}  Kf7 {[%clk 0:00:10]} 58. Rh8 {[%clk 0:00:11]}  Kg6 {[%clk 0:00:10]} 59. Rg8+ {[%clk 0:00:11]}  Rg7 {[%clk 0:00:09]} 60. Ra8 {[%clk 0:00:10]}  Rf7 {[%clk 0:00:08]} 61. Ra6+ {[%clk 0:00:10]}  Rf6 {[%clk 0:00:08]} 62. Ra5 {[%clk 0:00:10]}  Re6 {[%clk 0:00:05]} 63. Kf4 {[%clk 0:00:10]}  Rf6+ {[%clk 0:00:05]} 64. Ke3 {[%clk 0:00:10]}  Rb6 {[%clk 0:00:04]} 65. Kf4 {[%clk 0:00:10]}  Nd4 {[%clk 0:00:04]} 66. Rg5+ {[%clk 0:00:09]}  Kh6 {[%clk 0:00:05]} 67. Rd5 {[%clk 0:00:09]}  Ne6+ {[%clk 0:00:05]} 68. Kf5 {[%clk 0:00:09]}  Ng7+ {[%clk 0:00:05]} 69. Kf4 {[%clk 0:00:09]}  Rf6+ {[%clk 0:00:05]} 70. Ke5 {[%clk 0:00:09]}  Rf3 {[%clk 0:00:05]} 71. Rd6+ {[%clk 0:00:08]}  Kh7 {[%clk 0:00:05]} 72. Rd7 {[%clk 0:00:08]}  Rxg3 {[%clk 0:00:05]} 73. Kf6 {[%clk 0:00:06]}  Rf3+ {[%clk 0:00:05]} 74. Kg5 {[%clk 0:00:05]}  g3 {[%clk 0:00:06]} 75. Rd1 {[%clk 0:00:05]}  g2 {[%clk 0:00:05]} 76. Rg1 {[%clk 0:00:05]}  Rf2 {[%clk 0:00:06]} 77. e5 {[%clk 0:00:02]}  Ne6+ {[%clk 0:00:06]} 78. Kxh5 {[%clk 0:00:02]}  Nf4+ {[%clk 0:00:07]} 79. Kg4 {[%clk 0:00:02]}  Ne2 {[%clk 0:00:07]} 80. Kh3 {[%clk 0:00:01]}  Nxg1+ {[%clk 0:00:07]} 81. Kh2 {[%clk 0:00:02]}  Nf3+ {[%clk 0:00:07]} 82. Kg3 {[%clk 0:00:03]}  g1=Q+ {[%clk 0:00:07]} 83. Kf4 {[%clk 0:00:00]}  Qg6 {[%clk 0:00:07]} 0-1

[Event "December 5 Early 2023"]
[Site "https://www.chess.com"]
[Date "2023.12.05"]
[Round "7"]
[White "Movahed, Sina"]
[Black "Dragun, Kamil"]
[Result "1-0"]
[Board "25"]
[TimeControl "180+1"]
[WhiteFideId "42520835"]
[BlackFideId "1134167"]
[WhiteElo "2925"]
[BlackElo "2814"]
[WhiteTeam "IRI"]
[BlackTeam "POL"]
[WhiteClock "0:01:03"]
[BlackClock "0:00:17"]

1. e4 {[%clk 0:03:00]}  e5 {[%clk 0:03:00]} 2. Nf3 {[%clk 0:03:01]}  Nc6 {[%clk 0:03:00]} 3. Bb5 {[%clk 0:03:01]}  a6 {[%clk 0:03:01]} 4. Ba4 {[%clk 0:03:01]}  Nf6 {[%clk 0:03:01]} 5. O-O {[%clk 0:03:01]}  Be7 {[%clk 0:03:02]} 6. d3 {[%clk 0:03:00]}  b5 {[%clk 0:02:59]} 7. Bb3 {[%clk 0:03:00]}  d6 {[%clk 0:03:00]} 8. c3 {[%clk 0:03:00]}  O-O {[%clk 0:02:59]} 9. a4 {[%clk 0:03:00]}  Bd7 {[%clk 0:02:51]} 10. Re1 {[%clk 0:02:55]}  Na5 {[%clk 0:02:49]} 11. Bc2 {[%clk 0:02:54]}  c5 {[%clk 0:02:49]} 12. Nbd2 {[%clk 0:02:52]}  Qb8 {[%clk 0:02:47]} 13. Nf1 {[%clk 0:02:51]}  b4 {[%clk 0:02:45]} 14. Qe2 {[%clk 0:02:45]}  h6 {[%clk 0:02:39]} 15. Ne3 {[%clk 0:02:41]}  Rc8 {[%clk 0:02:37]} 16. Nh4 {[%clk 0:02:37]}  Bf8 {[%clk 0:02:36]} 17. h3 {[%clk 0:02:36]}  Be6 {[%clk 0:02:12]} 18. Nf3 {[%clk 0:02:29]}  bxc3 {[%clk 0:01:56]} 19. bxc3 {[%clk 0:02:30]}  Nb3 {[%clk 0:01:57]} 20. Rb1 {[%clk 0:02:23]}  Nxc1 {[%clk 0:01:56]} 21. Rexc1 {[%clk 0:02:24]}  Qc7 {[%clk 0:01:56]} 22. Bb3 {[%clk 0:02:25]}  Bxb3 {[%clk 0:01:45]} 23. Rxb3 {[%clk 0:02:26]}  Rab8 {[%clk 0:01:46]} 24. Rcb1 {[%clk 0:02:26]}  Rxb3 {[%clk 0:01:37]} 25. Rxb3 {[%clk 0:02:26]}  Qc6 {[%clk 0:01:11]} 26. Qa2 {[%clk 0:02:23]}  d5 {[%clk 0:01:08]} 27. exd5 {[%clk 0:02:16]}  Nxd5 {[%clk 0:01:09]} 28. Nxe5 {[%clk 0:02:16]}  Qe6 {[%clk 0:01:09]} 29. Rb7 {[%clk 0:01:57]}  Nxc3 {[%clk 0:00:51]} 30. Qxe6 {[%clk 0:01:56]}  fxe6 {[%clk 0:00:52]} 31. a5 {[%clk 0:01:54]}  Bd6 {[%clk 0:00:31]} 32. Ng6 {[%clk 0:01:45]}  Nd5 {[%clk 0:00:27]} 33. Nc4 {[%clk 0:01:42]}  Bf8 {[%clk 0:00:23]} 34. g4 {[%clk 0:01:29]}  Nb4 {[%clk 0:00:23]} 35. Rd7 {[%clk 0:01:28]}  Nd5 {[%clk 0:00:20]} 36. h4 {[%clk 0:01:16]}  Nf6 {[%clk 0:00:20]} 37. Ra7 {[%clk 0:01:16]}  Rd8 {[%clk 0:00:18]} 38. Rxa6 {[%clk 0:01:10]}  Nxg4 {[%clk 0:00:19]} 39. Rxe6 {[%clk 0:01:07]}  Kf7 {[%clk 0:00:19]} 40. Rc6 {[%clk 0:01:03]}  Rxd3 {[%clk 0:00:17]} 41. Nge5+ {[%clk 0:01:03]} 1-0

[Event "December 5 Early 2023"]
[Site "https://www.chess.com"]
[Date "2023.12.05"]
[Round "7"]
[White "Donchenko, Alexander"]
[Black "Yuan, Qingyu"]
[Result "0-1"]
[Board "27"]
[TimeControl "180+1"]
[WhiteFideId "24603295"]
[BlackFideId "8609772"]
[WhiteElo "2911"]
[BlackElo "2801"]
[WhiteTeam "GER"]
[BlackTeam "CHN"]
[WhiteClock "0:00:00"]
[BlackClock "0:00:03"]

1. Nf3 {[%clk 0:03:00]}  Nf6 {[%clk 0:02:57]} 2. g3 {[%clk 0:03:01]}  d5 {[%clk 0:02:57]} 3. Bg2 {[%clk 0:03:01]}  b6 {[%clk 0:02:53]} 4. O-O {[%clk 0:03:01]}  Bb7 {[%clk 0:02:54]} 5. c4 {[%clk 0:03:00]}  dxc4 {[%clk 0:02:51]} 6. Na3 {[%clk 0:03:00]}  c5 {[%clk 0:02:48]} 7. Nxc4 {[%clk 0:03:00]}  e6 {[%clk 0:02:48]} 8. b3 {[%clk 0:02:55]}  Be7 {[%clk 0:02:48]} 9. Bb2 {[%clk 0:02:55]}  Nbd7 {[%clk 0:02:48]} 10. d4 {[%clk 0:02:53]}  O-O {[%clk 0:02:47]} 11. Rc1 {[%clk 0:02:52]}  Rc8 {[%clk 0:02:44]} 12. e3 {[%clk 0:02:36]}  h6 {[%clk 0:02:36]} 13. Qe2 {[%clk 0:02:34]}  cxd4 {[%clk 0:02:26]} 14. Bxd4 {[%clk 0:02:31]}  b5 {[%clk 0:02:19]} 15. Nce5 {[%clk 0:02:28]}  Nxe5 {[%clk 0:02:14]} 16. Nxe5 {[%clk 0:02:25]}  Bxg2 {[%clk 0:02:08]} 17. Kxg2 {[%clk 0:02:26]}  Qd5+ {[%clk 0:02:06]} 18. Qf3 {[%clk 0:02:26]}  a6 {[%clk 0:01:58]} 19. Nc6 {[%clk 0:02:23]}  Qxf3+ {[%clk 0:01:42]} 20. Kxf3 {[%clk 0:02:24]}  Ba3 {[%clk 0:01:42]} 21. Bxf6 {[%clk 0:02:19]}  gxf6 {[%clk 0:01:25]} 22. Rc2 {[%clk 0:02:17]}  Rc7 {[%clk 0:01:16]} 23. Nb4 {[%clk 0:02:08]}  Rfc8 {[%clk 0:01:10]} 24. Rxc7 {[%clk 0:01:51]}  Rxc7 {[%clk 0:01:10]} 25. Nxa6 {[%clk 0:01:35]}  Rc2 {[%clk 0:00:26]} 26. Rd1 {[%clk 0:01:30]}  Rxa2 {[%clk 0:00:22]} 27. Nc7 {[%clk 0:01:30]}  b4 {[%clk 0:00:20]} 28. g4 {[%clk 0:01:11]}  Rc2 {[%clk 0:00:18]} 29. Ne8 {[%clk 0:01:08]}  Rc3 {[%clk 0:00:14]} 30. Nxf6+ {[%clk 0:01:08]}  Kg7 {[%clk 0:00:15]} 31. Nh5+ {[%clk 0:01:08]}  Kg6 {[%clk 0:00:10]} 32. Rd8 {[%clk 0:01:04]}  f5 {[%clk 0:00:06]} 33. Rd7 {[%clk 0:01:02]}  Kg5 {[%clk 0:00:02]} 34. Rg7+ {[%clk 0:00:50]}  Kh4 {[%clk 0:00:02]} 35. Nf4 {[%clk 0:00:50]}  e5 {[%clk 0:00:02]} 36. Ng6+ {[%clk 0:00:45]}  Kg5 {[%clk 0:00:02]} 37. Nh8+ {[%clk 0:00:28]}  Kf6 {[%clk 0:00:02]} 38. Rf7+ {[%clk 0:00:28]}  Ke6 {[%clk 0:00:02]} 39. gxf5+ {[%clk 0:00:28]}  Kd6 {[%clk 0:00:03]} 40. Ng6 {[%clk 0:00:27]}  Rxb3 {[%clk 0:00:03]} 41. f6 {[%clk 0:00:28]}  Ke6 {[%clk 0:00:03]} 42. Rf8 {[%clk 0:00:26]}  Rb2 {[%clk 0:00:03]} 43. Nh8 {[%clk 0:00:18]}  b3 {[%clk 0:00:02]} 44. Ra8 {[%clk 0:00:18]}  Ra2 {[%clk 0:00:02]} 45. f7 {[%clk 0:00:17]}  b2 {[%clk 0:00:03]} 46. Rb8 {[%clk 0:00:17]}  Ra1 {[%clk 0:00:02]} 47. Ng6 {[%clk 0:00:16]}  b1=Q {[%clk 0:00:02]} 48. Rxb1 {[%clk 0:00:13]}  Rxb1 {[%clk 0:00:03]} 49. f8=Q {[%clk 0:00:14]}  Bxf8 {[%clk 0:00:04]} 50. Nxf8+ {[%clk 0:00:15]}  Kf7 {[%clk 0:00:04]} 51. Nd7 {[%clk 0:00:15]}  Ke6 {[%clk 0:00:04]} 52. Nc5+ {[%clk 0:00:16]}  Kf5 {[%clk 0:00:05]} 53. Ne4 {[%clk 0:00:15]}  Ra1 {[%clk 0:00:04]} 54. Ng3+ {[%clk 0:00:14]}  Kf6 {[%clk 0:00:05]} 55. Ne4+ {[%clk 0:00:14]}  Ke6 {[%clk 0:00:05]} 56. Ng3 {[%clk 0:00:14]}  Ra4 {[%clk 0:00:05]} 57. Ne4 {[%clk 0:00:15]}  Kf5 {[%clk 0:00:05]} 58. Ng3+ {[%clk 0:00:15]}  Kf6 {[%clk 0:00:06]} 59. Ne4+ {[%clk 0:00:15]}  Kf5 {[%clk 0:00:06]} 60. Ng3+ {[%clk 0:00:16]}  Ke6 {[%clk 0:00:07]} 61. Ne4 {[%clk 0:00:16]}  Rb4 {[%clk 0:00:06]} 62. Ng3 {[%clk 0:00:16]}  Kf6 {[%clk 0:00:06]} 63. Ne4+ {[%clk 0:00:16]}  Kf5 {[%clk 0:00:06]} 64. Ng3+ {[%clk 0:00:17]}  Ke6 {[%clk 0:00:06]} 65. Ne4 {[%clk 0:00:17]}  Rb1 {[%clk 0:00:06]} 66. Ng3 {[%clk 0:00:17]}  Rb8 {[%clk 0:00:06]} 67. Ne4 {[%clk 0:00:18]}  Rf8+ {[%clk 0:00:07]} 68. Kg3 {[%clk 0:00:17]}  Kf5 {[%clk 0:00:06]} 69. Nd6+ {[%clk 0:00:17]}  Ke6 {[%clk 0:00:06]} 70. Ne4 {[%clk 0:00:17]}  Rg8+ {[%clk 0:00:06]} 71. Kf3 {[%clk 0:00:17]}  Kf5 {[%clk 0:00:06]} 72. Ng3+ {[%clk 0:00:18]}  Kg5 {[%clk 0:00:06]} 73. h3 {[%clk 0:00:14]}  Rf8+ {[%clk 0:00:04]} 74. Kg2 {[%clk 0:00:14]}  Kh4 {[%clk 0:00:04]} 75. Ne4 {[%clk 0:00:13]}  Rf7 {[%clk 0:00:04]} 76. Nd6 {[%clk 0:00:12]}  Rf6 {[%clk 0:00:03]} 77. Ne4 {[%clk 0:00:12]}  Rg6+ {[%clk 0:00:04]} 78. Kh2 {[%clk 0:00:13]}  Rg8 {[%clk 0:00:03]} 79. Nd6 {[%clk 0:00:12]}  Rf8 {[%clk 0:00:03]} 80. Kg2 {[%clk 0:00:12]}  Kg5 {[%clk 0:00:02]} 81. Ne4+ {[%clk 0:00:12]}  Kf5 {[%clk 0:00:03]} 82. Ng3+ {[%clk 0:00:12]}  Ke6 {[%clk 0:00:03]} 83. Ne4 {[%clk 0:00:11]}  Kd5 {[%clk 0:00:03]} 84. Ng3 {[%clk 0:00:11]}  Kc4 {[%clk 0:00:04]} 85. Nh5 {[%clk 0:00:06]}  Kd3 {[%clk 0:00:04]} 86. Ng3 {[%clk 0:00:06]}  Kd2 {[%clk 0:00:04]} 87. Ne4+ {[%clk 0:00:04]}  Ke2 {[%clk 0:00:05]} 88. Ng3+ {[%clk 0:00:04]}  Ke1 {[%clk 0:00:05]} 89. Ne4 {[%clk 0:00:05]}  Rg8+ {[%clk 0:00:04]} 90. Kf3 {[%clk 0:00:05]}  Rf8+ {[%clk 0:00:04]} 91. Kg2 {[%clk 0:00:05]}  Ke2 {[%clk 0:00:04]} 92. Ng3+ {[%clk 0:00:05]}  Kd3 {[%clk 0:00:05]} 93. Nh5 {[%clk 0:00:05]}  Rf5 {[%clk 0:00:05]} 94. Ng3 {[%clk 0:00:05]}  Rf7 {[%clk 0:00:05]} 95. Nh5 {[%clk 0:00:06]}  Ke2 {[%clk 0:00:05]} 96. Ng3+ {[%clk 0:00:06]}  Kd2 {[%clk 0:00:06]} 97. Ne4+ {[%clk 0:00:06]}  Kd3 {[%clk 0:00:06]} 98. Ng3 {[%clk 0:00:07]}  Ra7 {[%clk 0:00:05]} 99. Nf5 {[%clk 0:00:07]}  Ra6 {[%clk 0:00:05]} 100. h4 {[%clk 0:00:05]}  Rf6 {[%clk 0:00:04]} 101. Ng3 {[%clk 0:00:06]}  Rf8 {[%clk 0:00:05]} 102. Nh5 {[%clk 0:00:05]}  Ke2 {[%clk 0:00:04]} 103. Ng3+ {[%clk 0:00:06]}  Ke1 {[%clk 0:00:05]} 104. Ne4 {[%clk 0:00:06]}  Rf7 {[%clk 0:00:04]} 105. Kg1 {[%clk 0:00:03]}  Ke2 {[%clk 0:00:03]} 106. Kg2 {[%clk 0:00:03]}  Rg7+ {[%clk 0:00:03]} 107. Ng3+ {[%clk 0:00:04]}  Kd3 {[%clk 0:00:04]} 108. Kf3 {[%clk 0:00:04]}  Rf7+ {[%clk 0:00:04]} 109. Kg2 {[%clk 0:00:05]}  Kd2 {[%clk 0:00:04]} 110. Ne4+ {[%clk 0:00:05]}  Ke2 {[%clk 0:00:04]} 111. Ng3+ {[%clk 0:00:06]}  Ke1 {[%clk 0:00:05]} 112. Ne4 {[%clk 0:00:06]}  Rf8 {[%clk 0:00:05]} 113. Kg1 {[%clk 0:00:06]}  Rg8+ {[%clk 0:00:05]} 114. Ng3 {[%clk 0:00:05]}  Kd2 {[%clk 0:00:02]} 115. Kg2 {[%clk 0:00:06]}  Rf8 {[%clk 0:00:02]} 116. Ne4+ {[%clk 0:00:05]}  Kd3 {[%clk 0:00:02]} 117. Ng3 {[%clk 0:00:06]}  Kc4 {[%clk 0:00:03]} 118. Ne4 {[%clk 0:00:06]}  Kd5 {[%clk 0:00:03]} 119. Ng3 {[%clk 0:00:06]}  Ke6 {[%clk 0:00:03]} 120. Kf1 {[%clk 0:00:07]}  Kf6 {[%clk 0:00:03]} 121. Kg2 {[%clk 0:00:07]}  Ra8 {[%clk 0:00:04]} 122. Kf3 {[%clk 0:00:08]}  Ra4 {[%clk 0:00:04]} 123. h5 {[%clk 0:00:06]}  Kg5 {[%clk 0:00:04]} 124. Kg2 {[%clk 0:00:06]}  Kg4 {[%clk 0:00:04]} 125. f3+ {[%clk 0:00:03]}  Kg5 {[%clk 0:00:03]} 126. Kh3 {[%clk 0:00:03]}  Rh4+ {[%clk 0:00:03]} 127. Kg2 {[%clk 0:00:03]}  Rb4 {[%clk 0:00:04]} 128. Kh3 {[%clk 0:00:03]}  Rb3 {[%clk 0:00:03]} 129. Ne4+ {[%clk 0:00:00]}  Kf5 {[%clk 0:00:03]} 0-1